fUSD/lending_fUSD_20240624
["ID","MTS","AMOUNT","RATE_DAILY","PERIOD"]
[330249679,1719208242557,-155.80136907,0.00021854,2]
[330249680,1719208242566,-622.21690927,0.00021855,2]
[330249681,1719208242579,-753.48832543,0.00021855,2]
[330249682,1719208242588,-155.0,0.00021855,2]
[330249683,1719208242598,-346.07679139,0.00021855,2]
[330249684,1719208242607,-1133.92751376,0.00021855,2]
[330249685,1719208242616,-217.87188322,0.00021856,2]
[330249686,1719208242626,-155.0,0.00021875,2]
[330249687,1719208242635,-76889.85623897,0.0002188,2]
[330249688,1719208242647,-137100.0,0.0002188,2]
[330249689,1719208242658,-1076.2560126,0.0002188,2]
[330249690,1719208242670,-825.632,0.0002188,2]
[330249691,1719208242681,-284.54746564,0.0002188,2]
[330249692,1719208242692,-406.24944498,0.0002188,2]
[330249693,1719208242703,-411.63357934,0.0002188,2]
[330249694,1719208242715,-924.1338722,0.0002188,2]
[330249695,1719208242727,-643.65507974,0.0002188,2]
[330249696,1719208242738,-2873.71452217,0.0002188,2]
[330249697,1719208242748,-250.0,0.0002188,2]
[330249698,1719208242759,-312.16935958,0.0002188,2]
[330249699,1719208242858,-291628.85072038,0.0002188,2]
[330249700,1719208242870,-7053.221239,0.0002188,2]
[330249701,1719208242880,-671.29480659,0.0002188,2]
[330249720,1719208244497,-2830.38894434,0.0002188,2]
[330249723,1719208244512,-2287.29628348,0.0002188,2]
[330249724,1719208244527,-2863.99227697,0.0002188,2]
[330249728,1719208244543,-6299.402726,0.0002188,2]
[330249731,1719208244558,-1186.64880089,0.0002188,2]
[330249733,1719208244583,-378.42145,0.0002188,2]
[330249738,1719208245883,-625.0,0.0002188,2]
[330249739,1719208245896,-812.31370672,0.0002188,2]
[330249740,1719208245911,-1356.30670095,0.0002188,2]
[330249741,1719208245925,-414.60325002,0.0002188,2]
[330249742,1719208245939,-342.3,0.0002188,2]
[330249743,1719208245953,-187404.95085643,0.0002188,2]
[330249744,1719208245966,-301.79637577,0.0002188,2]
[330249745,1719208245980,-5292.87014813,0.0002188,2]
[330249746,1719208245994,-3075.09553607,0.0002188,2]
[330249747,1719208246007,-890.74330435,0.0002188,2]
[330249748,1719208246021,-4859.22515269,0.0002188,2]
[330249749,1719208246034,-581.51610159,0.0002188,2]
[330249750,1719208246204,-3167.198499,0.0002188,2]
[330249751,1719208246218,-663.21419401,0.0002188,2]
[330249752,1719208246233,-1900.24289999,0.0002188,2]
[330249753,1719208246246,-631847.30364366,0.0002188,2]
[330249755,1719208247104,-4003.50300215,0.0002188,2]
[330249756,1719208247117,-13702.68875,0.0002188,2]
[330249757,1719208247130,-1803.24107835,0.0002188,2]
[330249758,1719208247143,-4223.88782054,0.0002188,2]
[330249759,1719208247156,-453.999994,0.0002188,2]
[330249760,1719208248817,-1333.7000884,0.00021179,2]
[330249761,1719208248830,-3792.97760677,0.00021179,2]
[330249766,1719208249512,-845.50957208,0.00021179,2]
[330249767,1719208249524,-13621.33321001,0.00021179,2]
[330249768,1719208249535,-1333.60642354,0.00021179,2]
[330249769,1719208249545,-1621.5499998,0.00021179,2]
[330249773,1719208249574,-254.86173603,0.00021179,2]
[330249775,1719208249589,-325.95661418,0.00021179,2]
[330249777,1719208249600,-687.57361666,0.00021179,2]
[330249782,1719208249659,-569.64,0.00021179,2]
[330249783,1719208249670,-302.24088983,0.00021179,2]
[330249784,1719208249679,-411.99558277,0.0002188,2]
[330249785,1719208249690,-256.00441723,0.0002188,2]
[330249786,1719208249700,-4696.48323175,0.0002188,2]
[330249787,1719208249711,-308.46654346,0.0002188,2]
[330249788,1719208249722,-468.68885309,0.0002188,2]
[330249789,1719208249733,-15700.756119,0.0002188,2]
[330249790,1719208249744,-21615.85428932,0.0002188,2]
[330249791,1719208249755,-8539.06885841,0.0002188,2]
[330249792,1719208249765,-8922.83961422,0.0002188,2]
[330249793,1719208249776,-3963.59598511,0.0002188,2]
[330249794,1719208249787,-2564.02335288,0.0002188,2]
[330249795,1719208249797,-17849.13358637,0.0002188,2]
[330249796,1719208249808,-626.31,0.0002188,2]
[330249797,1719208249822,-149476.5957537,0.0002188,2]
[330249803,1719208394012,1027.271761,0.00025841,120]
[330249805,1719208484070,172.02,0.00024682,120]
[330249809,1719209431884,-500.0,0.00014519,2]
[330249811,1719209431894,-500.0,0.00014519,2]
[330249814,1719209431904,-476.94465062,0.00014519,2]
[330249817,1719209431917,-23.05534938,0.00014519,2]
[330249820,1719209431927,-505.57820801,0.00014519,2]
[330249823,1719209431936,-150.0,0.00016162,2]
[330249827,1719209431946,-300.0,0.00016162,2]
[330249830,1719209431958,-500.0,0.00016163,2]
[330249834,1719209431967,-506.38096732,0.00016163,2]
[330249836,1719209431977,-500.0,0.00016163,2]
[330249838,1719209431987,-453.64,0.00017646,2]
[330249840,1719209431998,-420.0,0.00017668,2]
[330249843,1719209432008,-210.0,0.00017778,2]
[330249845,1719209432017,-500.0,0.00017807,2]
[330249846,1719209432028,-500.0,0.00017807,2]
[330249849,1719209432037,-150.99,0.00017807,2]
[330249851,1719209432047,-150.99,0.00017807,2]
[330249852,1719209432057,-1387.28113137,0.00017807,2]
[330249855,1719209432069,-2079.471984,0.00017807,2]
[330249856,1719209432083,-1933.2137905,0.00017807,2]
[330249857,1719209432236,-5830.02309413,0.00017807,2]
[330249859,1719209432246,-299.99,0.00017807,4]
[330249861,1719209432256,-74.12303979,0.00017808,2]
[330249863,1719209432268,-1264.22696021,0.00017808,2]
[330249865,1719209432277,-500.0,0.00018903,2]
[330249867,1719209432287,-69.12467973,0.00018903,2]
[330249870,1719209432298,-269.37971792,0.00018903,2]
[330249872,1719209432310,-161.49560235,0.00018903,2]
[330249874,1719209432320,-499.99,0.00018903,2]
[330249876,1719209432329,-320.25,0.00018903,2]
[330249878,1719209432339,-359.0,0.00019244,2]
[330249880,1719209432348,-1655.0,0.00019244,2]
[330249882,1719209432357,-1272.0,0.00019244,2]
[330249884,1719209432366,-1820.0,0.00019244,2]
[330249886,1719209432376,-1119.93308034,0.00019244,2]
[330249888,1719209432387,-522.67520343,0.00019244,2]
[330249890,1719209432398,-500.0,0.00019244,2]
[330249931,1719209437982,-267.39171623,0.00019244,2]
[330249932,1719209437992,-162.35977596,0.00019244,2]
[330249933,1719209438003,-471.83724849,0.00019244,2]
[330249934,1719209438015,-658.80297555,0.00019244,2]
[330249935,1719209438024,-152.747,0.00019244,2]
[330249936,1719209438037,-547.0,0.00019244,2]
[330249937,1719209438046,-1174.26259279,0.00019244,2]
[330249938,1719209438058,-2023.73740721,0.00019244,2]
[330249939,1719209438068,-1982.0,0.00019244,2]
[330249940,1719209438077,-38159.0,0.00019244,2]
[330249941,1719209438087,-5799.0,0.00019244,2]
[330249942,1719209438096,-291.0,0.00019244,2]
[330249943,1719209438105,-1661.0,0.00019244,2]
[330249944,1719209438115,-5167.0,0.00019244,2]
[330249945,1719209438125,-1233.28,0.00019244,2]
[330249946,1719209438134,-2751.0,0.00019293,2]
[330249947,1719209438144,-587.0,0.00019313,2]
[330249948,1719209438153,-441.98,0.0001933,2]
[330249949,1719209438163,-250.0,0.00019339,2]
[330249950,1719209438173,-2322.72,0.00019368,2]
[330249951,1719209438182,-265.68,0.00019403,2]
[330249952,1719209438192,-200.0,0.00019436,2]
[330249953,1719209438202,-150.0,0.00019472,2]
[330249954,1719209438212,-250.0,0.00019485,2]
[330249955,1719209438221,-200.0,0.00019493,2]
[330249956,1719209438231,-2000.0,0.00019499,3]
[330249957,1719209438240,-4309.0,0.000195,2]
[330249958,1719209438251,-1000.0,0.00019506,2]
[330249959,1719209438261,-161.36,0.00019507,2]
[330249960,1719209438271,-250.0,0.00019565,2]
[330249961,1719209438280,-333.73,0.00019619,2]
[330249962,1719209438290,-180.06,0.00019638,2]
[330249963,1719209438300,-172.02,0.00019745,2]
[330249964,1719209438310,-2040.29,0.00019746,2]
[330249965,1719209438322,-1008.52,0.000198,2]
[330249966,1719209438332,-152.63,0.0001985,2]
[330249967,1719209438342,-302.35775273,0.00019886,2]
[330249969,1719209438352,-152.63,0.00019904,2]
[330249971,1719209438361,-453.64,0.0001991,2]
[330249973,1719209438371,-152.63,0.00019959,2]
[330249975,1719209438381,-500.0,0.00019999,2]
[330249977,1719209438390,-500.0,0.00019999,2]
[330249979,1719209438400,-2000.0,0.0002,2]
[330249981,1719209438410,-2000.0,0.0002001,2]
[330249983,1719209438419,-152.63,0.00020013,2]
[330249985,1719209438429,-34.6139803,0.0002002,2]
[330249987,1719209438442,-1965.3860197,0.0002002,2]
[330249989,1719209438452,-2000.0,0.0002003,2]
[330249991,1719209438462,-166.73,0.00020038,2]
[330249993,1719209438472,-2039.883854,0.0002004,2]
[330249995,1719209438482,-152.63,0.00020068,2]
[330249997,1719209438492,-152.63,0.00020122,2]
[330249999,1719209438502,-152.63,0.00020177,2]
[330250001,1719209438512,-152.63,0.00020231,2]
[330250003,1719209438522,-152.63,0.00020285,2]
[330250005,1719209438531,-152.63,0.0002034,2]
[330250007,1719209438540,-152.63,0.00020394,2]
[330250009,1719209438550,-152.63,0.00020449,2]
[330250011,1719209438559,-161.36,0.00020482,2]
[330250013,1719209438571,-152.63,0.00020503,2]
[330250015,1719209438582,-152.63,0.00020558,2]
[330250018,1719209438592,-152.63,0.00020612,2]
[330250020,1719209438601,-152.63,0.00020666,2]
[330250021,1719209438613,-501.0,0.00020714,2]
[330250023,1719209438623,-300.0,0.00020715,2]
[330250025,1719209438632,-152.63,0.00020721,2]
[330250027,1719209438642,-152.63,0.00020775,2]
[330250029,1719209438651,-152.63,0.0002083,2]
[330250031,1719209438661,-152.63,0.00020884,2]
[330250033,1719209438671,-500.0,0.00020917,2]
[330250035,1719209438681,-500.0,0.00020917,2]
[330250037,1719209438690,-75.49559738,0.00020917,2]
[330250040,1719209438703,-424.50440262,0.00020917,2]
[330250042,1719209438713,-500.0,0.00020917,2]
[330250044,1719209438722,-109.34974441,0.00020917,2]
[330250046,1719209438734,-390.65025559,0.00020917,2]
[330250048,1719209438743,-500.0,0.00020917,2]
[330250050,1719209438752,-500.0,0.00020917,2]
[330250052,1719209438763,-73.78291442,0.00020917,2]
[330250054,1719209438774,-426.21708558,0.00020917,2]
[330250056,1719209438783,-500.0,0.00020917,2]
[330250058,1719209438793,-500.0,0.00020917,2]
[330250060,1719209438803,-500.0,0.00020917,2]
[330250062,1719209438817,-500.0,0.00020917,2]
[330250064,1719209438826,-500.0,0.00020917,2]
[330250066,1719209438836,-500.0,0.00020917,2]
[330250068,1719209438845,-500.0,0.00020917,2]
[330250070,1719209438855,-500.0,0.00020917,2]
[330250072,1719209438864,-500.0,0.00020917,2]
[330250074,1719209438874,-84.1114288,0.00020917,2]
[330250076,1719209438886,-299.58797889,0.00020917,2]
[330250088,1719209438992,-3.97767939,0.00020917,2]
[330250090,1719209439005,-112.32291292,0.00020917,2]
[330250092,1719209439016,-301.76172128,0.00020917,2]
[330250094,1719209439028,-198.23827872,0.00020917,2]
[330250096,1719209439041,-500.0,0.00020917,2]
[330250098,1719209439051,-500.0,0.00020917,2]
[330250100,1719209439062,-500.0,0.00020917,2]
[330250102,1719209439072,-468.3,0.00020917,2]
[330250104,1719209439081,-500.0,0.00020917,2]
[330250106,1719209439091,-171.78930526,0.00020917,2]
[330250108,1719209439103,-328.21069474,0.00020917,2]
[330250110,1719209439113,-413.9056044,0.00020917,2]
[330250112,1719209439127,-86.0943956,0.00020917,2]
[330250114,1719209439138,-190.9583125,0.00020917,2]
[330250116,1719209439150,-309.0416875,0.00020917,2]
[330250118,1719209439160,-500.0,0.00020917,2]
[330250120,1719209439170,-142.52179049,0.00020917,2]
[330250122,1719209439183,-357.47820951,0.00020917,2]
[330250124,1719209439193,-500.0,0.00020917,2]
[330250126,1719209439203,-500.0,0.00020917,2]
[330250128,1719209439213,-500.0,0.00020917,2]
[330250130,1719209439223,-500.0,0.00020917,2]
[330250132,1719209439232,-500.0,0.00020917,2]
[330250134,1719209439242,-500.0,0.00020917,2]
[330250136,1719209439251,-500.0,0.00020917,2]
[330250138,1719209439262,-500.0,0.00020917,2]
[330250140,1719209439272,-205.08716485,0.00020917,2]
[330250143,1719209439285,-294.91283515,0.00020917,2]
[330250145,1719209439295,-500.0,0.00020917,2]
[330250147,1719209439305,-500.0,0.00020917,2]
[330250149,1719209439316,-500.0,0.00020917,2]
[330250150,1719209439326,-518.86,0.00020917,2]
[330250152,1719209439336,-500.0,0.00020917,2]
[330250155,1719209439346,-501.0,0.00020965,2]
[330250157,1719209439357,-1250.0,0.00021,2]
[330250159,1719209439367,-202.552159,0.00021,2]
[330250160,1719209439376,-1008.52,0.0002102,2]
[330250162,1719209439386,-150.53,0.00021068,2]
[330250164,1719209439396,-190.65375522,0.00021095,2]
[330250167,1719209439408,-309.34624478,0.00021095,2]
[330250169,1719209439418,-500.0,0.00021095,2]
[330250171,1719209439428,-823.0,0.00021112,2]
[330250173,1719209439439,-166.73,0.0002114,2]
[330250175,1719209439449,-1934.77079522,0.00021189,2]
[330250183,1719209439586,-712.29463692,0.00021189,2]
[330250184,1719209439597,-580.79166872,0.00021189,2]
[330250185,1719209439609,-1766.12431216,0.00021189,2]
[330250218,1719209439998,-789.09709592,0.00019244,2]
[330250223,1719209440010,-278.90290408,0.00019244,2]
[330250226,1719209440020,-63.20509592,0.00021189,2]
[330250230,1719209440033,-5479.81632642,0.00021189,2]
[330250233,1719209440042,-600.0,0.000212,7]
[330250236,1719209440053,-211.77471176,0.00021205,2]
[330250239,1719209440064,-501.0,0.00021215,2]
[330250242,1719209440073,-412.61839352,0.00021226,2]
[330250245,1719209440083,-211.77471175,0.00021273,2]
[330250248,1719209440092,-1200.0,0.000213,7]
[330250251,1719209440101,-211.77471175,0.00021341,2]
[330250254,1719209440111,-617.17337479,0.0002137,2]
[330250257,1719209440122,-5473.28777001,0.0002137,2]
[330250260,1719209440135,-311.89,0.0002137,2]
[330250264,1719209440146,-1324.65286134,0.0002137,2]
[330250267,1719209440157,-1560.56,0.0002137,2]
[330250269,1719209440169,-622.26330008,0.0002137,2]
[330250271,1719209440181,-8600.0,0.0002137,2]
[330250361,1719209441988,-303.94329984,0.0002137,2]
[330250362,1719209441999,-1086.14729352,0.0002137,2]
[330250363,1719209442010,-293.7,0.0002137,2]
[330250364,1719209442022,-4434.20210042,0.0002137,2]
[330250365,1719209442032,-1800.0,0.000214,7]
[330250366,1719209442044,-211.77471175,0.00021409,2]
[330250367,1719209442054,-161.36,0.00021457,2]
[330250368,1719209442066,-514.34538336,0.00021466,2]
[330250369,1719209442075,-211.77471175,0.00021477,2]
[330250370,1719209442083,-190.76100475,0.00021478,2]
[330250371,1719209442092,-2400.0,0.000215,7]
[330250372,1719209442102,-211.77471175,0.00021545,2]
[330250373,1719209442111,-209.96997035,0.00021599,2]
[330250374,1719209442120,-3100.0,0.000216,7]
[330250375,1719209442130,-10000.0,0.000216,2]
[330250376,1719209442139,-217.87188322,0.00021612,2]
[330250377,1719209442148,-211.77471175,0.00021613,2]
[330250378,1719209442158,-182.78743527,0.00021643,2]
[330250379,1719209442167,-222.33,0.00021644,2]
[330250380,1719209442176,-385.03,0.00021644,2]
[330250381,1719209442186,-1000.0,0.0002168,2]
[330250382,1719209442195,-2500.0,0.0002168,2]
[330250383,1719209442204,-211.77471175,0.00021681,2]
[330250384,1719209442214,-312.38331428,0.0002169,2]
[330250385,1719209442223,-600.0,0.000217,7]
[330250386,1719209442232,-1162.36302156,0.000217,2]
[330250387,1719209442241,-3964.57243593,0.00021706,2]
[330250388,1719209442251,-2491.01847886,0.00021715,2]
[330250389,1719209442262,-1263.2464365,0.00021716,2]
[330250390,1719209442272,-2374.53515352,0.00021717,2]
[330250391,1719209442281,-526.48485008,0.00021734,2]
[330250392,1719209442290,-155.05268072,0.00021748,2]
[330250393,1719209442299,-211.77471175,0.00021749,2]
[330250394,1719209442308,-500.0,0.00021779,4]
[330250395,1719209442319,-2006.7,0.00021779,4]
[330250397,1719209442328,-168.00632716,0.00021779,2]
[330250399,1719209442336,-500.0,0.0002178,2]
[330250401,1719209442345,-90921.392,0.0002178,2]
[330250403,1719209442354,-1000.0,0.0002178,2]
[330250405,1719209442363,-509.88083147,0.0002178,4]
[330250407,1719209442372,-113122.397218,0.0002178,2]
[330250408,1719209442381,-163.15,0.0002178,2]
[330250410,1719209442390,-156.13336855,0.00021789,2]
[330250411,1719209442399,-2198.85723835,0.00021789,2]
[330250412,1719209442407,-59665.60158504,0.0002179,2]
[330250413,1719209442420,-856.15680213,0.0002179,2]
[330250414,1719209442431,-167461.59710981,0.0002179,2]
[330250415,1719209442442,-1121.2213578,0.0002179,2]
[330250416,1719209442453,-4905.37844259,0.0002179,2]
[330250423,1719209442667,-322.87653265,0.00019178,2]
[330250426,1719209442679,-177.12346735,0.00019178,2]
[330250427,1719209442688,-109.18953265,0.0002178,4]
[330250430,1719209442699,-895.86543096,0.0002178,4]
[330250434,1719209442711,-1456.05511599,0.0002178,4]
[330250439,1719209442721,-678.9899204,0.0002178,4]
[330250442,1719209442730,-4198.11969256,0.0002179,2]
[330250444,1719209442741,-3233.95897282,0.0002179,2]
[330250446,1719209442752,-4031.09087575,0.0002179,2]
[330250448,1719209442763,-9052.2689025,0.0002179,2]
[330250450,1719209442772,-4000.25484269,0.0002179,2]
[330250452,1719209442982,-467.07332182,0.00019452,4]
[330250455,1719209442995,-32.92667818,0.00019452,4]
[330250458,1719209443006,-358.26332082,0.00019726,4]
[330250461,1719209443018,-150.67621075,0.00019726,4]
[330250466,1719209443027,-607.32578925,0.0002179,2]
[330250468,1719209443041,-6240.54208,0.0002179,2]
[330250471,1719209443052,-182.73878086,0.0002179,2]
[330250475,1719209443062,-163.15,0.0002179,2]
[330250478,1719209443072,-116.46043167,0.00021794,2]
[330250482,1719209443084,-86.01016182,0.00021794,2]
[330250483,1719209443093,-600.60306848,0.00021795,2]
[330250486,1719209443104,-561.75995302,0.00021795,2]
[330250488,1719209443114,-339.508947,0.00021798,2]
[330250490,1719209443123,-4.90467971,0.00021798,2]
[330250492,1719209443135,-252.269328,0.00021798,2]
[330250494,1719209443147,-275.54275542,0.00021798,2]
[330250496,1719209443156,-543.96475932,0.00021799,2]
[330250499,1719209443166,-600.0,0.000218,7]
[330250501,1719209443176,-3530.36479814,0.000218,2]
[330250510,1719209443353,-3847.46814345,0.000218,2]
[330250514,1719209443381,-267.14573897,0.000218,2]
[330250516,1719209443392,-1259.78700029,0.000218,2]
[330250518,1719209443403,-24526.4133895,0.000218,2]
[330250520,1719209443414,-837.77,0.000218,2]
[330250522,1719209443425,-119.04062965,0.000218,2]
[330250524,1719209443434,-225.06915372,0.000218,2]
[330250526,1719209443445,-566.80410465,0.000218,2]
[330250528,1719209443456,-136117.38936662,0.000218,2]
[330250565,1719209447416,-500.0,0.00019178,2]
[330250566,1719209447426,-500.0,0.00019178,2]
[330250567,1719209447436,-500.0,0.00019178,2]
[330250568,1719209447445,-500.0,0.00019452,4]
[330250569,1719209447455,-500.0,0.00019452,4]
[330250570,1719209447464,-500.0,0.00019452,4]
[330250571,1719209447474,-500.0,0.00019726,4]
[330250572,1719209447483,-512.55933884,0.00019726,4]
[330250573,1719209447493,-500.0,0.00019726,4]
[330250574,1719209447502,-500.0,0.0002,4]
[330250575,1719209447511,-500.0,0.0002,4]
[330250576,1719209447520,-500.0,0.00020273,4]
[330250577,1719209447530,-500.0,0.00020547,4]
[330250578,1719209447539,-500.0,0.00020821,4]
[330250579,1719209447548,-500.0,0.00021095,4]
[330250580,1719209447557,-500.0,0.00021369,4]
[330250581,1719209447571,-500.0,0.00021643,4]
[330250582,1719209447581,-3965.12,0.00021779,4]
[330250583,1719209447590,-500.0,0.00021779,4]
[330250584,1719209447600,-500.0,0.00021779,4]
[330250585,1719209447609,-7488.43311923,0.00021779,4]
[330250586,1719209447621,-1018.3,0.00021779,4]
[330250587,1719209447633,-1447.01688077,0.00021779,4]
[330250588,1719209447643,-500.0,0.00021779,4]
[330250589,1719209447652,-500.0,0.00021779,4]
[330250590,1719209447661,-2119.68581868,0.00021779,4]
[330250591,1719209447672,-2584.74418132,0.00021779,4]
[330250592,1719209447682,-470.6908862,0.0002178,2]
[330250593,1719209447691,-500.0,0.0002178,4]
[330250594,1719209447701,-543.96475932,0.00021797,2]
[330250595,1719209447710,-4237.40857094,0.000218,2]
[330250596,1719209447721,-5762.25570456,0.000218,2]
[330250597,1719209447732,-1133.82762388,0.000218,2]
[330250598,1719209447743,-42438.88335231,0.000218,2]
[330250599,1719209447755,-1757.99426359,0.000218,2]
[330250600,1719209447766,-295.25514135,0.000218,2]
[330250601,1719209447777,-383.87296915,0.000218,2]
[330250602,1719209447788,-990.17860319,0.000218,2]
[330250603,1719209447798,-783.37200756,0.000218,2]
[330250604,1719209447811,-4666.27831828,0.000218,2]
[330250605,1719209447824,-347.179092,0.000218,2]
[330250606,1719209447835,-4788.38967729,0.000218,2]
[330250607,1719209447931,-500.0,0.00020273,4]
[330250608,1719209447940,-169.38,0.00020871,2]
[330250609,1719209447950,-500.0,0.00021779,4]
[330250610,1719209447964,-12282.71708928,0.000218,2]
[330250611,1719209447976,-1468.61436009,0.000218,2]
[330250612,1719209447987,-9554.179056,0.000218,2]
[330250613,1719209447998,-17200.33154554,0.000218,2]
[330250614,1719209448008,-5103.82514866,0.000218,2]
[330250615,1719209448020,-27648.882471,0.000218,2]
[330250616,1719209448032,-5573.88035066,0.000218,2]
[330250617,1719209448044,-3821.0,0.000218,2]
[330250618,1719209448055,-674.79429573,0.000218,2]
[330250619,1719209448068,-1805.59770737,0.000218,2]
[330250620,1719209448080,-802.76112139,0.000218,2]
[330250621,1719209448092,-1546.96039731,0.000218,2]
[330250622,1719209448103,-677.99999947,0.000218,2]
[330250623,1719209448114,-791.69949259,0.000218,2]
[330250624,1719209448126,-387.53754655,0.000218,2]
[330250625,1719209448137,-794.89183922,0.000218,2]
[330250626,1719209448149,-2306.87815915,0.000218,2]
[330250627,1719209448160,-6037.61331955,0.000218,2]
[330250628,1719209448171,-1014.75723147,0.000218,2]
[330250629,1719209448183,-793.35168184,0.000218,2]
[330250630,1719209448197,-3965.93903504,0.000218,2]
[330250631,1719209448209,-1258.7533834,0.000218,2]
[330250632,1719209448220,-2071.00287212,0.000218,2]
[330250633,1719209448232,-531.0,0.000218,2]
[330250634,1719209448243,-1458.83968283,0.000218,2]
[330250635,1719209448255,-409.14193754,0.000218,2]
[330250636,1719209448267,-489.02686996,0.000218,2]
[330250648,1719209595331,200.0,0.00025871,120]
[330250649,1719209599055,200.0,0.00025771,120]
[330251612,1719210632385,-1000.0,0.00013991,2]
[330251613,1719210632395,-172.02,0.00013991,2]
[330251614,1719210632406,-253.98,0.00013991,2]
[330251615,1719210632428,-11.7,0.00013991,2]
[330251616,1719210632440,-421.60724134,0.00014519,2]
[330251617,1719210632450,-500.0,0.00014519,2]
[330251618,1719210632459,-1000.0,0.0001574,2]
[330251619,1719210632469,-325.80262025,0.00016163,2]
[330251620,1719210632479,-408.27,0.0001677,2]
[330251621,1719210632488,-300.0,0.00017259,2]
[330251622,1719210632498,-1000.0,0.00017488,2]
[330251623,1719210632508,-172.02,0.00017488,2]
[330251624,1719210632519,-499.99,0.00017808,2]
[330251625,1719210632528,-499.99,0.00017808,2]
[330251626,1719210632538,-200.0,0.00018544,2]
[330251627,1719210632548,-250.0,0.00018555,2]
[330251628,1719210632563,-250.0,0.00018635,2]
[330251629,1719210632573,-2000.0,0.00018728,3]
[330251630,1719210632582,-420.0,0.00018846,2]
[330251631,1719210632592,-704.73916216,0.000189,2]
[330251632,1719210632601,-1010.2791348,0.00019,2]
[330251633,1719210632611,-408.27,0.00019034,2]
[330251634,1719210632620,-250.0,0.00019178,2]
[330251635,1719210632630,-1000.0,0.00019237,2]
[330251636,1719210632640,-398.01,0.00019484,2]
[330251637,1719210632649,-665.0,0.000196,2]
[330251638,1719210632659,-1013.38,0.000198,2]
[330251639,1719210632670,-150.0,0.0002,2]
[330251640,1719210632679,-176.45216287,0.00020057,2]
[330251641,1719210632689,-190.58,0.00020059,2]
[330251642,1719210632700,-1420.45512308,0.0002017,2]
[330251643,1719210632710,-170.23650307,0.0002017,2]
[330251644,1719210632720,-743.41648229,0.00020171,2]
[330251645,1719210632730,-1528.7326,0.00020173,2]
[330251646,1719210632741,-365.18124254,0.00020232,2]
[330251647,1719210632750,-597.79,0.0002026,2]
[330251648,1719210632759,-597.79,0.0002026,2]
[330251649,1719210632769,-597.79,0.0002026,2]
[330251650,1719210632778,-163.15,0.00020261,2]
[330251651,1719210632788,-597.79,0.00020261,2]
[330251652,1719210632798,-597.79,0.00020261,2]
[330251653,1719210632808,-6625.04,0.00020269,4]
[330251654,1719210632820,-2873.0,0.00020269,4]
[330251656,1719210632829,-3213.55,0.00020269,4]
[330251658,1719210632838,-500.0,0.00020269,4]
[330251660,1719210632848,-4975.93,0.00020269,4]
[330251661,1719210632857,-1993.7,0.00020269,4]
[330251662,1719210632867,-1036.62,0.00020269,4]
[330251663,1719210632877,-500.0,0.00020269,4]
[330251664,1719210632887,-1367.04,0.00020269,4]
[330251665,1719210632896,-500.0,0.00020269,4]
[330251666,1719210632905,-4432.98,0.00020269,4]
[330251667,1719210632915,-771.07,0.00020269,4]
[330251668,1719210632925,-500.0,0.00020269,4]
[330251669,1719210632934,-3852.76,0.00020269,4]
[330251670,1719210632944,-1761.05,0.00020269,4]
[330251671,1719210632955,-4962.44,0.00020269,4]
[330251672,1719210632965,-583.86,0.00020269,2]
[330251673,1719210632974,-7458.90572949,0.00020269,4]
[330251674,1719210632988,-2752.76427051,0.00020269,4]
[330251675,1719210632997,-4458.23572949,0.00020269,2]
[330251676,1719210633009,-892.30034146,0.00020269,2]
[330251677,1719210633021,-494.53,0.00020269,2]
[330251678,1719210633032,-854.82014811,0.00020269,2]
[330251679,1719210633172,-93300.11378094,0.00020269,2]
[330251680,1719210633182,-500.0,0.00020269,4]
[330251681,1719210633191,-3033.8,0.00020269,4]
[330251682,1719210633201,-500.0,0.00020269,4]